fUSD/lending_fUSD_20250302
["ID","MTS","AMOUNT","RATE_DAILY","PERIOD"]
[355175417,1740945059772,-509.96,0.00027671,2]
[355175418,1740945059782,-205.46361959,0.00027671,2]
[355175419,1740945059793,-785.07,0.00027671,2]
[355175420,1740945059803,-500.0,0.00027671,2]
[355175421,1740945059813,-500.0,0.00027671,2]
[355175422,1740945059823,-708.74,0.00027671,2]
[355175423,1740945059835,-500.0,0.00027671,2]
[355175424,1740945059844,-2022.86,0.00027671,2]
[355175425,1740945059854,-1256.49,0.00027671,2]
[355175426,1740945059864,-500.0,0.00027671,2]
[355175427,1740945059874,-500.0,0.00027671,2]
[355175428,1740945059884,-500.0,0.00027671,2]
[355175429,1740945059894,-5610.36,0.00027671,2]
[355175430,1740945059904,-500.0,0.00027671,2]
[355175431,1740945059913,-542.2,0.00027671,2]
[355175432,1740945059923,-866.41,0.00027671,2]
[355175433,1740945059932,-500.0,0.00027671,2]
[355175434,1740945059941,-500.0,0.00027671,2]
[355175435,1740945059950,-500.0,0.00027671,2]
[355175436,1740945059959,-950.68,0.00027671,2]
[355175437,1740945059970,-613.31,0.00027671,2]
[355175438,1740945059979,-500.0,0.00027671,2]
[355175439,1740945059988,-500.0,0.00027671,2]
[355175440,1740945059997,-667.13,0.00027671,2]
[355175441,1740945060007,-554.27,0.00027671,2]
[355175442,1740945060017,-705.18,0.00027671,2]
[355175443,1740945060029,-787.64,0.00027671,2]
[355175444,1740945060039,-500.01,0.00027671,2]
[355175445,1740945060048,-564.21,0.00027671,2]
[355175446,1740945060058,-594.01262353,0.00027671,2]
[355175447,1740945060068,-760.26,0.00027671,2]
[355175448,1740945060079,-500.0,0.00027671,2]
[355175449,1740945060090,-1360.86,0.00027671,2]
[355175450,1740945060101,-591.86,0.00027671,2]
[355175451,1740945060111,-589.01,0.00027671,2]
[355175452,1740945060121,-500.0,0.00027671,2]
[355175453,1740945060131,-540.25,0.00027671,2]
[355175454,1740945060141,-500.0,0.00027671,2]
[355175455,1740945060151,-921.01,0.00027671,2]
[355175456,1740945060162,-721.37,0.00027671,2]
[355175457,1740945060172,-682.59,0.00027671,2]
[355175458,1740945060182,-894.13,0.00027671,2]
[355175459,1740945060192,-768.63,0.00027671,2]
[355175460,1740945060202,-834.9,0.00027671,2]
[355175461,1740945060212,-1090.72,0.00027671,2]
[355175462,1740945060223,-680.75,0.00027671,2]
[355175463,1740945060233,-500.0,0.00027671,2]
[355175464,1740945060244,-573.01,0.00027671,2]
[355175465,1740945060255,-500.0,0.00027671,2]
[355175466,1740945060265,-1944.84437666,0.00027728,4]
[355175467,1740945060275,-169.97,0.00027728,2]
[355175468,1740945060285,-150.0,0.000278,2]
[355175469,1740945060295,-151.0,0.00027811,7]
[355175470,1740945060306,-2110.0,0.00027858,2]
[355175471,1740945060317,-15155.76933983,0.0002793,2]
[355175472,1740945060327,-1159.76,0.00027944,2]
[355175473,1740945060338,-1059.43,0.00027944,2]
[355175474,1740945060348,-708.05,0.00027944,2]
[355175475,1740945060357,-500.0,0.00027945,2]
[355175476,1740945060367,-353.917026,0.00027945,2]
[355175477,1740945060378,-500.0,0.00027945,2]
[355175478,1740945060388,-500.0,0.00027945,2]
[355175479,1740945060398,-199.496843,0.00027945,2]
[355175480,1740945060409,-339.65617626,0.00027945,2]
[355175481,1740945060422,-500.0,0.00027945,2]
[355175482,1740945060432,-500.0,0.00027945,2]
[355175483,1740945060441,-500.0,0.00027945,2]
[355175484,1740945060452,-500.0,0.00027945,2]
[355175485,1740945060463,-500.0,0.00027945,2]
[355175486,1740945060473,-500.0,0.00027945,2]
[355175487,1740945060484,-719.73,0.00027945,2]
[355175488,1740945060496,-500.0,0.00027945,2]
[355175489,1740945060507,-500.0,0.00027945,2]
[355175490,1740945060517,-1093.93,0.00027945,2]
[355175491,1740945060529,-505.66,0.00027945,2]
[355175492,1740945060540,-500.0,0.00027945,2]
[355175493,1740945060550,-500.0,0.00027945,2]
[355175494,1740945060560,-374.97769774,0.00027945,2]
[355175495,1740945060571,-500.0,0.00027945,2]
[355175496,1740945060582,-260.81839829,0.00027945,2]
[355175497,1740945060592,-500.0,0.00027945,2]
[355175498,1740945060603,-594.96,0.00027945,2]
[355175499,1740945060613,-500.0,0.00027945,2]
[355175500,1740945060624,-593.0,0.00027945,2]
[355175501,1740945060635,-650.42,0.00027945,2]
[355175502,1740945060647,-559.89,0.00027945,2]
[355175503,1740945060658,-500.0,0.00027945,2]
[355175504,1740945060670,-500.0,0.00027945,2]
[355175505,1740945060682,-500.0,0.00027945,2]
[355175506,1740945060693,-749.59,0.00027945,2]
[355175507,1740945060705,-500.0,0.00027945,2]
[355175508,1740945060716,-500.0,0.00027945,2]
[355175509,1740945060727,-857.63,0.00027945,2]
[355175510,1740945060739,-500.0,0.00027945,2]
[355175511,1740945060749,-536.7,0.00027945,2]
[355175512,1740945060759,-500.0,0.00027945,2]
[355175513,1740945060771,-506.49,0.00027945,2]
[355175514,1740945060782,-901.77,0.00027945,2]
[355175515,1740945060793,-2877.75,0.00027945,2]
[355175516,1740945060804,-509.96,0.00027945,2]
[355175517,1740945060815,-785.07,0.00027945,2]
[355175518,1740945060828,-500.0,0.00027945,2]
[355175519,1740945060839,-500.0,0.00027945,2]
[355175520,1740945060850,-708.74,0.00027945,2]
[355175521,1740945060860,-500.0,0.00027945,2]
[355175522,1740945060870,-2022.86,0.00027945,2]
[355175523,1740945060881,-1256.49,0.00027945,2]
[355175524,1740945060892,-500.0,0.00027945,2]
[355175525,1740945060903,-500.0,0.00027945,2]
[355175526,1740945060915,-500.0,0.00027945,2]
[355175527,1740945060925,-5610.36,0.00027945,2]
[355175528,1740945060935,-500.0,0.00027945,2]
[355175529,1740945060946,-542.2,0.00027945,2]
[355175530,1740945060955,-866.41,0.00027945,2]
[355175531,1740945060966,-500.0,0.00027945,2]
[355175532,1740945060976,-500.0,0.00027945,2]
[355175533,1740945060986,-500.0,0.00027945,2]
[355175534,1740945060996,-950.68,0.00027945,2]
[355175535,1740945061006,-478.22721204,0.00027945,2]
[355175536,1740945061016,-500.0,0.00027945,2]
[355175537,1740945061026,-667.13,0.00027945,2]
[355175538,1740945061037,-554.27,0.00027945,2]
[355175539,1740945061048,-705.18,0.00027945,2]
[355175540,1740945061059,-787.64,0.00027945,2]
[355175541,1740945061070,-500.01,0.00027945,2]
[355175542,1740945061082,-564.21,0.00027945,2]
[355175543,1740945061092,-760.26,0.00027945,2]
[355175544,1740945061103,-500.0,0.00027945,2]
[355175545,1740945061113,-1360.86,0.00027945,2]
[355175546,1740945061123,-591.86,0.00027945,2]
[355175547,1740945061134,-589.01,0.00027945,2]
[355175548,1740945061144,-500.0,0.00027945,2]
[355175549,1740945061154,-540.25,0.00027945,2]
[355175550,1740945061165,-921.01,0.00027945,2]
[355175551,1740945061175,-500.0,0.00027945,2]
[355175552,1740945061186,-721.37,0.00027945,2]
[355175553,1740945061196,-682.59,0.00027945,2]
[355175554,1740945061206,-894.13,0.00027945,2]
[355175555,1740945061215,-768.63,0.00027945,2]
[355175556,1740945061226,-834.9,0.00027945,2]
[355175557,1740945061236,-1090.72,0.00027945,2]
[355175558,1740945061246,-680.75,0.00027945,2]
[355175559,1740945061256,-500.0,0.00027945,2]
[355175560,1740945061267,-573.01,0.00027945,2]
[355175561,1740945061276,-500.0,0.00027945,2]
[355175562,1740945061288,-1944.84437666,0.00027969,4]
[355175563,1740945061300,-1088.88401899,0.00027976,30]
[355175564,1740945061311,-3867.75,0.00028,2]
[355175565,1740945061322,-25591.0,0.00028,2]
[355175566,1740945061333,-500.0,0.00028,30]
[355175567,1740945061343,-503.61280804,0.00028,30]
[355175568,1740945061354,-500.0,0.00028,30]
[355175569,1740945061364,-500.0,0.00028,30]
[355175570,1740945061374,-500.0,0.00028,30]
[355175571,1740945061384,-6000.0,0.00028,2]
[355175572,1740945061395,-1354.58279323,0.00028065,2]
[355175573,1740945061406,-8243.27344855,0.00028087,2]
[355175574,1740945061417,-219.0,0.000281,2]
[355175575,1740945061429,-3837.92747887,0.000281,7]
[355175576,1740945061440,-150.0,0.00028109,14]
[355175577,1740945061450,-1277.0,0.0002819,2]
[355175578,1740945061463,-1425.0,0.0002819,2]
[355175579,1740945061474,-150.0,0.0002819,2]
[355175580,1740945061484,-3927.0,0.0002819,2]
[355175581,1740945061496,-1739.2349944,0.00028196,2]
[355175582,1740945061506,-1739.23499434,0.00028196,2]
[355175583,1740945061517,-673.32090188,0.000282,2]
[355175584,1740945061528,-1100.0,0.000282,10]
[355175585,1740945061538,-1000.0,0.000282,2]
[355175586,1740945061549,-1944.84437666,0.0002821,5]
[355175587,1740945061559,-1159.76,0.00028218,2]
[355175588,1740945061570,-1059.43,0.00028218,2]
[355175589,1740945061584,-708.05,0.00028218,2]
[355175590,1740945061595,-167.537347,0.00028219,7]
[355175591,1740945061606,-151.0,0.00028219,7]
[355175592,1740945061616,-151.0,0.00028219,7]
[355175593,1740945061627,-151.0,0.00028219,7]
[355175594,1740945061637,-568.90609935,0.00028219,2]
[355175595,1740945061648,-353.917026,0.00028219,2]
[355175596,1740945061659,-500.0,0.00028219,2]
[355175597,1740945061670,-500.0,0.00028219,2]
[355175598,1740945061680,-199.496843,0.00028219,2]
[355175599,1740945061692,-151.0,0.00028219,7]
[355175600,1740945061703,-500.0,0.00028219,2]
[355175601,1740945061714,-151.0,0.00028219,7]
[355175602,1740945061725,-283.22,0.00028219,2]
[355175603,1740945061736,-500.0,0.00028219,2]
[355175604,1740945061746,-500.0,0.00028219,2]
[355175605,1740945061756,-500.0,0.00028219,2]
[355175606,1740945061766,-151.0,0.00028219,7]
[355175607,1740945061776,-500.0,0.00028219,2]
[355175608,1740945061786,-556.506965,0.00028219,7]
[355175609,1740945061796,-556.506965,0.00028219,7]
[355175610,1740945061806,-719.73,0.00028219,2]
[355175611,1740945061817,-500.0,0.00028219,2]
[355175612,1740945061827,-500.0,0.00028219,2]
[355175613,1740945061839,-151.0,0.00028219,7]
[355175614,1740945061850,-1093.93,0.00028219,2]
[355175615,1740945061861,-505.66,0.00028219,2]
[355175616,1740945061872,-500.0,0.00028219,2]
[355175617,1740945061882,-151.0,0.00028219,7]
[355175618,1740945061892,-500.0,0.00028219,2]
[355175619,1740945061903,-500.0,0.00028219,2]
[355175620,1740945061914,-151.0,0.00028219,7]
[355175621,1740945061924,-500.0,0.00028219,2]
[355175622,1740945061934,-219.528404,0.00028219,7]
[355175623,1740945061946,-594.96,0.00028219,2]
[355175624,1740945061956,-159.73,0.00028219,2]
[355175625,1740945061967,-593.0,0.00028219,2]
[355175626,1740945061976,-650.42,0.00028219,2]
[355175627,1740945061986,-559.89,0.00028219,2]
[355175628,1740945061997,-500.0,0.00028219,2]
[355175629,1740945062007,-500.0,0.00028219,2]
[355175630,1740945062018,-500.0,0.00028219,2]
[355175631,1740945062029,-749.59,0.00028219,2]
[355175632,1740945062039,-500.0,0.00028219,2]
[355175633,1740945062050,-500.0,0.00028219,2]
[355175634,1740945062061,-857.63,0.00028219,2]
[355175635,1740945062071,-500.0,0.00028219,2]
[355175636,1740945062084,-536.7,0.00028219,2]
[355175637,1740945062095,-500.0,0.00028219,2]
[355175638,1740945062106,-506.49,0.00028219,2]
[355175639,1740945062117,-901.77,0.00028219,2]
[355175640,1740945062127,-2877.75,0.00028219,2]
[355175641,1740945062139,-509.96,0.00028219,2]
[355175642,1740945062149,-151.0,0.00028219,7]
[355175643,1740945062159,-785.07,0.00028219,2]
[355175644,1740945062170,-500.0,0.00028219,2]
[355175645,1740945062180,-500.0,0.00028219,2]
[355175646,1740945062191,-708.74,0.00028219,2]
[355175647,1740945062202,-500.0,0.00028219,2]
[355175648,1740945062212,-2022.86,0.00028219,2]
[355175649,1740945062223,-1256.49,0.00028219,2]
[355175650,1740945062234,-500.0,0.00028219,2]
[355175651,1740945062245,-500.0,0.00028219,2]
[355175652,1740945062255,-500.0,0.00028219,2]
[355175653,1740945062266,-5610.36,0.00028219,2]
[355175654,1740945062276,-500.0,0.00028219,2]
[355175655,1740945062287,-542.2,0.00028219,2]
[355175656,1740945062297,-1584.508964,0.00028219,7]
[355175657,1740945062308,-154.876463,0.00028219,7]
[355175658,1740945062319,-866.41,0.00028219,2]
[355175659,1740945062330,-1584.508964,0.00028219,7]
[355175660,1740945062340,-500.0,0.00028219,2]
[355175661,1740945062352,-500.0,0.00028219,2]
[355175662,1740945062362,-500.0,0.00028219,2]
[355175663,1740945062373,-950.68,0.00028219,2]
[355175664,1740945062383,-500.0,0.00028219,2]
[355175665,1740945062394,-667.13,0.00028219,2]
[355175666,1740945062404,-554.27,0.00028219,2]
[355175667,1740945062418,-705.18,0.00028219,2]
[355175668,1740945062428,-787.64,0.00028219,2]
[355175669,1740945062439,-500.01,0.00028219,2]
[355175670,1740945062451,-564.21,0.00028219,2]
[355175671,1740945062463,-760.26,0.00028219,2]
[355175672,1740945062474,-500.0,0.00028219,2]
[355175673,1740945062485,-300.238277,0.00028219,7]
[355175674,1740945062495,-1360.86,0.00028219,2]
[355175675,1740945062505,-591.86,0.00028219,2]
[355175676,1740945062516,-300.238277,0.00028219,7]
[355175677,1740945062526,-589.01,0.00028219,2]
[355175678,1740945062537,-500.0,0.00028219,2]
[355175679,1740945062548,-540.25,0.00028219,2]
[355175680,1740945062559,-921.01,0.00028219,2]
[355175681,1740945062569,-603.69240719,0.00028219,2]
[355175682,1740945062580,-151.0,0.00028219,7]
[355175683,1740945062591,-721.37,0.00028219,2]
[355175684,1740945062602,-682.59,0.00028219,2]
[355175685,1740945062612,-894.13,0.00028219,2]
[355175686,1740945062623,-768.63,0.00028219,2]
[355175687,1740945062633,-834.9,0.00028219,2]
[355175688,1740945062644,-1090.72,0.00028219,2]
[355175689,1740945062655,-680.75,0.00028219,2]
[355175690,1740945062665,-500.0,0.00028219,2]
[355175691,1740945062676,-573.01,0.00028219,2]
[355175692,1740945062686,-191.279951,0.00028219,7]
[355175693,1740945062696,-500.0,0.00028219,2]
[355175694,1740945062707,-300.0,0.00028219,2]
[355175695,1740945062717,-170.6256772,0.000283,2]
[355175696,1740945062728,-159.0,0.000283,18]
[355175697,1740945062740,-1300.0,0.000283,10]
[355175698,1740945062752,-2110.0,0.00028358,2]
[355175699,1740945062763,-655.60087295,0.0002836,2]
[355175700,1740945062774,-500.0,0.000284,2]
[355175701,1740945062785,-135953.19467626,0.000284,2]
[355175702,1740945062795,-667.06320002,0.000284,2]
[355175703,1740945062806,-151.0,0.000284,7]
[355175704,1740945062818,-151.0,0.000284,7]
[355175705,1740945062828,-151.0,0.000284,7]
[355175706,1740945062841,-13739.02223754,0.000284,2]
[355175707,1740945062853,-200.0,0.000284,10]
[355175708,1740945062864,-1000.0,0.000284,2]
[355175709,1740945062876,-1944.84437666,0.00028452,5]
[355175710,1740945062887,-1159.76,0.00028492,2]
[355175711,1740945062898,-1059.43,0.00028492,2]
[355175712,1740945062909,-708.05,0.00028492,2]
[355175713,1740945062921,-585.32886176,0.00028493,2]
[355175714,1740945062932,-299.26481434,0.00028493,3]
[355175715,1740945063143,-353.917026,0.00028493,2]
[355175716,1740945063155,-500.0,0.00028493,2]
[355175717,1740945063167,-500.0,0.00028493,2]
[355175718,1740945063177,-199.496843,0.00028493,2]
[355175719,1740945063188,-500.0,0.00028493,2]
[355175720,1740945063199,-500.0,0.00028493,2]
[355175721,1740945063209,-500.0,0.00028493,2]
[355175722,1740945063220,-500.0,0.00028493,2]
[355175723,1740945063231,-500.0,0.00028493,2]
[355175724,1740945063242,-719.73,0.00028493,2]
[355175725,1740945063253,-500.0,0.00028493,2]
[355175726,1740945063263,-500.0,0.00028493,2]
[355175727,1740945063273,-1093.93,0.00028493,2]
[355175728,1740945063284,-505.66,0.00028493,2]
[355175729,1740945063295,-500.0,0.00028493,2]
[355175730,1740945063306,-500.0,0.00028493,2]
[355175731,1740945063317,-500.0,0.00028493,2]
[355175732,1740945063327,-500.0,0.00028493,2]
[355175733,1740945063341,-594.96,0.00028493,2]
[355175734,1740945063352,-593.0,0.00028493,2]
[355175735,1740945063362,-650.42,0.00028493,2]
[355175736,1740945063373,-559.89,0.00028493,2]
[355175737,1740945063385,-500.0,0.00028493,2]
[355175738,1740945063396,-500.0,0.00028493,2]
[355175739,1740945063408,-500.0,0.00028493,2]
[355175740,1740945063419,-749.59,0.00028493,2]
[355175741,1740945063431,-500.0,0.00028493,2]
[355175742,1740945063442,-500.0,0.00028493,2]
[355175743,1740945063453,-857.63,0.00028493,2]
[355175744,1740945063464,-500.0,0.00028493,2]
[355175745,1740945063474,-536.7,0.00028493,2]
[355175746,1740945063485,-500.0,0.00028493,2]
[355175747,1740945063498,-506.49,0.00028493,2]
[355175748,1740945063510,-901.77,0.00028493,2]
[355175749,1740945063521,-2877.75,0.00028493,2]
[355175750,1740945063532,-509.96,0.00028493,2]
[355175751,1740945063543,-785.07,0.00028493,2]
[355175752,1740945063553,-500.0,0.00028493,2]
[355175753,1740945063563,-500.0,0.00028493,2]
[355175754,1740945063574,-708.74,0.00028493,2]
[355175755,1740945063586,-500.0,0.00028493,2]
[355175756,1740945063597,-2022.86,0.00028493,2]
[355175757,1740945063608,-1256.49,0.00028493,2]
[355175758,1740945063619,-500.0,0.00028493,2]
[355175759,1740945063630,-500.0,0.00028493,2]
[355175760,1740945063641,-500.0,0.00028493,2]
[355175761,1740945063651,-5610.36,0.00028493,2]
[355175762,1740945063662,-500.0,0.00028493,2]
[355175763,1740945063673,-542.2,0.00028493,2]
[355175764,1740945063684,-866.41,0.00028493,2]
[355175765,1740945063695,-500.0,0.00028493,2]
[355175766,1740945063706,-500.0,0.00028493,2]
[355175767,1740945063717,-500.0,0.00028493,2]
[355175768,1740945063727,-950.68,0.00028493,2]
[355175769,1740945063737,-500.0,0.00028493,2]
[355175770,1740945063747,-667.13,0.00028493,2]
[355175771,1740945063757,-554.27,0.00028493,2]
[355175772,1740945063767,-705.18,0.00028493,2]
[355175773,1740945063778,-787.64,0.00028493,2]
[355175774,1740945063789,-500.01,0.00028493,2]
[355175775,1740945063799,-564.21,0.00028493,2]
[355175776,1740945063810,-760.26,0.00028493,2]
[355175777,1740945063821,-196.37336944,0.00028493,2]
[355175778,1740945063833,-1360.86,0.00028493,2]
[355175779,1740945063843,-591.86,0.00028493,2]
[355175780,1740945063853,-589.01,0.00028493,2]
[355175781,1740945063866,-500.0,0.00028493,2]
[355175782,1740945063879,-540.25,0.00028493,2]
[355175783,1740945063890,-921.01,0.00028493,2]
[355175784,1740945063901,-721.37,0.00028493,2]
[355175785,1740945063911,-682.59,0.00028493,2]
[355175786,1740945063922,-894.13,0.00028493,2]
[355175787,1740945063933,-768.63,0.00028493,2]
[355175788,1740945063944,-834.9,0.00028493,2]
[355175789,1740945063955,-1090.72,0.00028493,2]
[355175790,1740945063966,-680.75,0.00028493,2]
[355175791,1740945063977,-500.0,0.00028493,2]
[355175792,1740945063988,-573.01,0.00028493,2]
[355175793,1740945063997,-500.0,0.00028493,2]
[355175794,1740945064007,-467.04616367,0.000285,2]
[355175795,1740945064018,-200.0,0.000285,10]
[355175796,1740945064028,-1354.58279323,0.00028581,2]
[355175797,1740945064039,-8243.27344855,0.00028592,2]
[355175798,1740945064049,-551.4749,0.000286,2]
[355175799,1740945064060,-200.0,0.000286,10]
[355175800,1740945064070,-962.6369,0.000286,2]
[355175801,1740945064080,-1382.85,0.00028685,2]
[355175802,1740945064091,-1944.84437666,0.00028693,5]
[355175803,1740945064101,-200.0,0.000287,10]
[355175804,1740945064111,-5000.00000001,0.00028765,10]
[355175805,1740945064121,-151.0,0.00028766,7]
[355175806,1740945064131,-556.506965,0.00028766,7]
[355175807,1740945064141,-556.506965,0.00028766,7]
[355175808,1740945064151,-151.0,0.00028766,7]
[355175809,1740945064161,-1159.76,0.00028766,2]
[355175810,1740945064171,-180.109329,0.00028766,7]
[355175811,1740945064181,-1059.43,0.00028766,2]
[355175812,1740945064192,-708.05,0.00028766,2]
[355175813,1740945064202,-151.0,0.00028766,7]
[355175814,1740945064213,-151.0,0.00028767,7]
[355175815,1740945064223,-151.0,0.00028767,7]
[355175816,1740945064233,-353.917026,0.00028767,2]
[355175817,1740945064243,-634.73,0.00028767,2]
[355175818,1740945064254,-301.9228496,0.00028767,2]
[355175819,1740945064264,-199.496843,0.00028767,2]
[355175820,1740945064274,-151.0,0.00028767,7]
[355175821,1740945064284,-622.34907498,0.00028767,2]
[355175822,1740945064296,-151.0,0.00028767,7]
[355175823,1740945064306,-500.0,0.00028767,2]
[355175824,1740945064316,-500.0,0.00028767,2]
[355175825,1740945064326,-500.0,0.00028767,2]
[355175826,1740945064338,-500.0,0.00028767,2]
[355175827,1740945064348,-719.73,0.00028767,2]
[355175828,1740945064359,-500.0,0.00028767,2]
[355175829,1740945064370,-500.0,0.00028767,2]
[355175830,1740945064380,-1093.93,0.00028767,2]
[355175831,1740945064392,-505.66,0.00028767,2]
[355175832,1740945064403,-500.0,0.00028767,2]
[355175833,1740945064420,-500.0,0.00028767,2]
[355175834,1740945064432,-500.0,0.00028767,2]
[355175835,1740945064443,-500.0,0.00028767,2]
[355175836,1740945064455,-594.96,0.00028767,2]
[355175837,1740945064466,-593.0,0.00028767,2]
[355175838,1740945064476,-650.42,0.00028767,2]
[355175839,1740945064487,-559.89,0.00028767,2]
[355175840,1740945064500,-500.0,0.00028767,2]
[355175841,1740945064511,-500.0,0.00028767,2]
[355175842,1740945064521,-500.0,0.00028767,2]
[355175843,1740945064531,-749.59,0.00028767,2]
[355175844,1740945064541,-500.0,0.00028767,2]
[355175845,1740945064552,-500.0,0.00028767,2]
[355175846,1740945064562,-857.63,0.00028767,2]
[355175847,1740945064572,-500.0,0.00028767,2]
[355175848,1740945064584,-536.7,0.00028767,2]
[355175849,1740945064594,-500.0,0.00028767,2]
[355175850,1740945064604,-506.49,0.00028767,2]
[355175851,1740945064615,-901.77,0.00028767,2]
[355175852,1740945064625,-2877.75,0.00028767,2]
[355175853,1740945064636,-509.96,0.00028767,2]
[355175854,1740945064647,-151.0,0.00028767,7]
[355175855,1740945064658,-785.07,0.00028767,2]
[355175856,1740945064668,-500.0,0.00028767,2]
[355175857,1740945064678,-500.0,0.00028767,2]
[355175858,1740945064688,-708.74,0.00028767,2]
[355175859,1740945064698,-500.0,0.00028767,2]
[355175860,1740945064708,-2022.86,0.00028767,2]
[355175861,1740945064718,-1256.49,0.00028767,2]
[355175862,1740945064728,-500.0,0.00028767,2]
[355175863,1740945064738,-500.0,0.00028767,2]
[355175864,1740945064747,-500.0,0.00028767,2]
[355175865,1740945064757,-5610.36,0.00028767,2]
[355175866,1740945064767,-500.0,0.00028767,2]
[355175867,1740945064777,-542.2,0.00028767,2]
[355175868,1740945064787,-1584.508964,0.00028767,7]
[355175869,1740945064798,-866.41,0.00028767,2]
[355175870,1740945064807,-1584.508964,0.00028767,7]
[355175871,1740945064818,-500.0,0.00028767,2]
[355175872,1740945064827,-500.0,0.00028767,2]
[355175873,1740945064838,-500.0,0.00028767,2]
[355175874,1740945064848,-950.68,0.00028767,2]
[355175875,1740945064858,-292.80849762,0.00028767,2]
[355175876,1740945064868,-667.13,0.00028767,2]
[355175877,1740945064878,-554.27,0.00028767,2]
[355175878,1740945064888,-705.18,0.00028767,2]
[355175879,1740945064898,-787.64,0.00028767,2]
[355175880,1740945064908,-500.01,0.00028767,2]
[355175881,1740945064918,-564.21,0.00028767,2]
[355175882,1740945064927,-760.26,0.00028767,2]
[355175883,1740945064937,-300.238277,0.00028767,7]
[355175884,1740945064948,-1360.86,0.00028767,2]
[355175885,1740945064957,-591.86,0.00028767,2]
[355175886,1740945064967,-300.238277,0.00028767,7]
[355175887,1740945064977,-589.01,0.00028767,2]
[355175888,1740945064987,-500.0,0.00028767,2]
[355175889,1740945064996,-540.25,0.00028767,2]
[355175890,1740945065006,-921.01,0.00028767,2]
[355175891,1740945065016,-721.37,0.00028767,2]
[355175892,1740945065026,-682.59,0.00028767,2]
[355175893,1740945065036,-894.13,0.00028767,2]
[355175894,1740945065046,-768.63,0.00028767,2]
[355175895,1740945065057,-834.9,0.00028767,2]
[355175896,1740945065067,-1090.72,0.00028767,2]
[355175897,1740945065077,-680.75,0.00028767,2]
[355175898,1740945065089,-500.0,0.00028767,2]
[355175899,1740945065099,-573.01,0.00028767,2]
[355175900,1740945065109,-191.279951,0.00028767,7]
[355175901,1740945065118,-500.0,0.00028767,2]
[355175902,1740945065128,-1345.0,0.000288,2]
[355175903,1740945065138,-803.0,0.000288,10]
[355175904,1740945065149,-1430.66,0.00028858,2]
[355175905,1740945065159,-1475.0,0.000289,4]
[355175906,1740945065169,-164.68993409,0.00028904,10]
[355175907,1740945065178,-150.0,0.0002893,2]
[355175908,1740945065187,-1944.84437666,0.00028934,5]
[355175909,1740945065197,-796.0,0.0002899,5]
[355175910,1740945065207,-9011.38318597,0.00029,2]
[355175911,1740945065216,-1000.0,0.00029,2]
[355175912,1740945065226,-1000.0,0.00029,2]
[355175913,1740945065235,-1000.0,0.00029,2]
[355175914,1740945065244,-1000.0,0.00029,2]
[355175915,1740945065254,-1000.0,0.00029,2]
[355175916,1740945065264,-1000.0,0.00029,2]